[Event "Titled Tuesday Blitz June 13 Early 2023"]
[White "Dishman, Stephen"]
[Black "Vidruska, Renate"]
[WhiteFideId "403024"]
[BlackFideId "11601841"]
[WhiteElo "2204"]
[BlackElo "1976"]
[Result "1/2-1/2"]
[Round "4"]
[TimeControl "180+2"]
[Date "2023.06.13"]
[WhiteClock "0:00:56"]
[BlackClock "0:01:11"]
[Board "207"]

1. c4 {[%clk 0:03:00]}  e6 {[%clk 0:02:58]} 2. g3 {[%clk 0:03:00]}  d5 {[%clk 0:02:58]} 3. Nf3 {[%clk 0:03:01]}  Nf6 {[%clk 0:02:57]} 4. d4 {[%clk 0:03:01]}  dxc4 {[%clk 0:02:57]} 5. Bg2 {[%clk 0:03:00]}  Be7 {[%clk 0:02:57]} 6. O-O {[%clk 0:03:00]}  O-O {[%clk 0:02:58]} 7. Qa4 {[%clk 0:02:59]}  a6 {[%clk 0:02:57]} 8. Qxc4 {[%clk 0:02:58]}  b5 {[%clk 0:02:58]} 9. Qc2 {[%clk 0:02:58]}  Bb7 {[%clk 0:02:58]} 10. Bf4 {[%clk 0:02:57]}  Bd6 {[%clk 0:02:52]} 11. Nc3 {[%clk 0:02:55]}  Bxf4 {[%clk 0:02:51]} 12. gxf4 {[%clk 0:02:54]}  Nbd7 {[%clk 0:02:50]} 13. Rfd1 {[%clk 0:02:50]}  Qe7 {[%clk 0:02:47]} 14. Ne5 {[%clk 0:02:34]}  Bxg2 {[%clk 0:02:42]} 15. Kxg2 {[%clk 0:02:35]}  c5 {[%clk 0:02:38]} 16. e3 {[%clk 0:02:24]}  cxd4 {[%clk 0:02:36]} 17. Rxd4 {[%clk 0:02:24]}  Nxe5 {[%clk 0:02:33]} 18. fxe5 {[%clk 0:02:25]}  Nd7 {[%clk 0:02:31]} 19. f4 {[%clk 0:02:21]}  Rac8 {[%clk 0:02:22]} 20. Rad1 {[%clk 0:02:16]}  Nxe5 {[%clk 0:02:17]} 21. fxe5 {[%clk 0:02:13]}  b4 {[%clk 0:02:17]} 22. Qf2 {[%clk 0:01:33]}  bxc3 {[%clk 0:02:13]} 23. bxc3 {[%clk 0:01:34]}  Rxc3 {[%clk 0:02:02]} 24. Qg3 {[%clk 0:01:30]}  Rc2+ {[%clk 0:01:52]} 25. R1d2 {[%clk 0:01:30]}  Rxd2+ {[%clk 0:01:52]} 26. Rxd2 {[%clk 0:01:31]}  h6 {[%clk 0:01:45]} 27. h4 {[%clk 0:01:30]}  Qb4 {[%clk 0:01:43]} 28. Rf2 {[%clk 0:01:27]}  Rd8 {[%clk 0:01:40]} 29. Qf4 {[%clk 0:01:20]}  Qxf4 {[%clk 0:01:39]} 30. exf4 {[%clk 0:01:20]}  Rd3 {[%clk 0:01:31]} 31. h5 {[%clk 0:01:17]}  g6 {[%clk 0:01:30]} 32. hxg6 {[%clk 0:01:15]}  fxg6 {[%clk 0:01:31]} 33. Rb2 {[%clk 0:01:15]}  a5 {[%clk 0:01:28]} 34. Rb6 {[%clk 0:01:10]}  Rd2+ {[%clk 0:01:26]} 35. Kg3 {[%clk 0:01:08]}  Rxa2 {[%clk 0:01:27]} 36. Rxe6 {[%clk 0:01:07]}  Kg7 {[%clk 0:01:26]} 37. Re7+ {[%clk 0:01:03]}  Kf8 {[%clk 0:01:23]} 38. Ra7 {[%clk 0:00:58]}  Ra3+ {[%clk 0:01:13]} 39. Kg4 {[%clk 0:00:58]}  Ra4 {[%clk 0:01:13]} 40. Ra8+ {[%clk 0:00:55]}  Kf7 {[%clk 0:01:13]} 41. Ra7+ {[%clk 0:00:56]}  Kf8 {[%clk 0:01:13]} 42. Ra8+ {[%clk 0:00:56]}  Kf7 {[%clk 0:01:13]} 43. Ra7+ {[%clk 0:00:56]}  Kf8 {[%clk 0:01:11]} 1/2-1/2


[Site "https://www.chess.com"]

[Event "Titled Tuesday Blitz June 13 Early 2023"]
[White "FREDERICKtheMATE"]
[Black "Luxama, Jacques Muller"]
[BlackFideId "11900113"]
[WhiteElo "2347"]
[BlackElo "1931"]
[Result "1-0"]
[Round "4"]
[TimeControl "180+2"]
[Date "2023.06.13"]
[WhiteClock "0:01:44"]
[BlackClock "0:00:00"]
[Board "210"]

1. Nf3 {[%clk 0:03:00]}  Nf6 {[%clk 0:02:57]} 2. g3 {[%clk 0:03:01]}  g6 {[%clk 0:02:57]} 3. Bg2 {[%clk 0:03:02]}  Bg7 {[%clk 0:02:57]} 4. O-O {[%clk 0:03:03]}  O-O {[%clk 0:02:58]} 5. d4 {[%clk 0:03:04]}  d5 {[%clk 0:02:55]} 6. c4 {[%clk 0:03:04]}  c6 {[%clk 0:02:55]} 7. b3 {[%clk 0:03:04]}  Bf5 {[%clk 0:02:54]} 8. Bb2 {[%clk 0:03:04]}  a5 {[%clk 0:02:51]} 9. Nbd2 {[%clk 0:03:04]}  Ne4 {[%clk 0:02:46]} 10. Nh4 {[%clk 0:03:01]}  Nxd2 {[%clk 0:02:43]} 11. Qxd2 {[%clk 0:03:00]}  Be6 {[%clk 0:02:39]} 12. c5 {[%clk 0:02:58]}  Nd7 {[%clk 0:02:33]} 13. a3 {[%clk 0:02:57]}  b6 {[%clk 0:02:29]} 14. b4 {[%clk 0:02:57]}  bxc5 {[%clk 0:02:22]} 15. bxc5 {[%clk 0:02:56]}  Rb8 {[%clk 0:02:16]} 16. Bc3 {[%clk 0:02:54]}  a4 {[%clk 0:02:09]} 17. Rab1 {[%clk 0:02:51]}  Qc8 {[%clk 0:01:37]} 18. Rb4 {[%clk 0:02:44]}  Qa6 {[%clk 0:01:31]} 19. Rfb1 {[%clk 0:02:43]}  Rxb4 {[%clk 0:01:26]} 20. Rxb4 {[%clk 0:02:42]}  Rb8 {[%clk 0:01:20]} 21. Bf1 {[%clk 0:02:28]}  Rxb4 {[%clk 0:01:17]} 22. Bxb4 {[%clk 0:02:28]}  Qc4 {[%clk 0:01:09]} 23. e3 {[%clk 0:02:26]}  Qb3 {[%clk 0:01:06]} 24. Bd3 {[%clk 0:02:26]}  Nf6 {[%clk 0:01:01]} 25. Bc2 {[%clk 0:02:19]}  Qc4 {[%clk 0:00:49]} 26. Bxa4 {[%clk 0:02:13]}  Bh3 {[%clk 0:00:44]} 27. Qd1 {[%clk 0:02:09]}  Ne4 {[%clk 0:00:21]} 28. Bb3 {[%clk 0:02:00]}  Qa6 {[%clk 0:00:17]} 29. f3 {[%clk 0:01:53]}  Nf6 {[%clk 0:00:08]} 30. Bc2 {[%clk 0:01:47]}  e6 {[%clk 0:00:06]} 31. Qd3 {[%clk 0:01:45]}  g5 {[%clk 0:00:00]} 32. Qxa6 {[%clk 0:01:44]} 1-0


[Site "https://www.chess.com"]

[Event "Titled Tuesday Blitz June 13 Early 2023"]
[White "Palacio,Igor Da Paz"]
[Black "Shapiro, Daniel"]
[WhiteFideId "2121140"]
[BlackFideId "2001780"]
[WhiteElo "2126"]
[BlackElo "2336"]
[Result "0-1"]
[Round "4"]
[TimeControl "180+2"]
[Date "2023.06.13"]
[WhiteClock "0:00:00"]
[BlackClock "0:00:27"]
[Board "211"]

1. e4 {[%clk 0:03:00]}  c5 {[%clk 0:03:00]} 2. Nc3 {[%clk 0:03:00]}  a6 {[%clk 0:02:58]} 3. g3 {[%clk 0:03:01]}  b5 {[%clk 0:02:58]} 4. Bg2 {[%clk 0:03:01]}  Bb7 {[%clk 0:02:58]} 5. d3 {[%clk 0:03:01]}  e6 {[%clk 0:02:54]} 6. f4 {[%clk 0:03:01]}  d5 {[%clk 0:02:47]} 7. Nf3 {[%clk 0:02:58]}  b4 {[%clk 0:02:37]} 8. Ne2 {[%clk 0:02:57]}  dxe4 {[%clk 0:02:37]} 9. Ng5 {[%clk 0:02:56]}  Nf6 {[%clk 0:02:31]} 10. O-O {[%clk 0:02:48]}  Qb6 {[%clk 0:02:16]} 11. Nxe4 {[%clk 0:02:41]}  Nxe4 {[%clk 0:02:14]} 12. dxe4 {[%clk 0:02:39]}  c4+ {[%clk 0:02:10]} 13. Kh1 {[%clk 0:02:38]}  Bc5 {[%clk 0:01:57]} 14. c3 {[%clk 0:02:34]}  a5 {[%clk 0:01:55]} 15. Nd4 {[%clk 0:02:26]}  O-O {[%clk 0:01:43]} 16. Be3 {[%clk 0:02:22]}  Rd8 {[%clk 0:01:38]} 17. Qe2 {[%clk 0:02:22]}  Ba6 {[%clk 0:01:34]} 18. Rad1 {[%clk 0:02:14]}  Ra7 {[%clk 0:01:32]} 19. Rd2 {[%clk 0:02:10]}  a4 {[%clk 0:01:21]} 20. Nc2 {[%clk 0:00:32]}  Rad7 {[%clk 0:01:14]} 21. Bxc5 {[%clk 0:00:16]}  Rxd2 {[%clk 0:00:43]} 22. Qxd2 {[%clk 0:00:09]}  Rxd2 {[%clk 0:00:42]} 23. Bxb6 {[%clk 0:00:09]}  Rxc2 {[%clk 0:00:42]} 24. cxb4 {[%clk 0:00:04]}  c3 {[%clk 0:00:29]} 25. Rd1 {[%clk 0:00:04]}  Rd2 {[%clk 0:00:29]} 26. Rxd2 {[%clk 0:00:03]}  cxd2 {[%clk 0:00:30]} 27. Bf3 {[%clk 0:00:03]}  Nc6 {[%clk 0:00:30]} 28. Bc5 {[%clk 0:00:02]}  Bc4 {[%clk 0:00:28]} 29. Kg2 {[%clk 0:00:02]}  Bxa2 {[%clk 0:00:28]} 30. Kf2 {[%clk 0:00:02]}  Bb3 {[%clk 0:00:28]} 31. Ke3 {[%clk 0:00:01]}  d1=Q {[%clk 0:00:27]} 32. Bxd1 {[%clk 0:00:00]}  Bxd1 {[%clk 0:00:27]} 0-1


[Site "https://www.chess.com"]

[Event "Titled Tuesday Blitz June 13 Early 2023"]
[White "Kornyukov, Alexey"]
[Black "Bintang, Rasyid A. Hidayat"]
[WhiteFideId "4150457"]
[BlackFideId "7105355"]
[WhiteElo "2352"]
[BlackElo "2332"]
[Result "0-1"]
[Round "4"]
[TimeControl "180+2"]
[Date "2023.06.13"]
[WhiteClock "0:00:03"]
[BlackClock "0:01:24"]
[Board "212"]

1. d4 {[%clk 0:02:50]}  Nf6 {[%clk 0:02:59]} 2. c4 {[%clk 0:02:51]}  g6 {[%clk 0:02:59]} 3. f3 {[%clk 0:02:51]}  d5 {[%clk 0:02:57]} 4. cxd5 {[%clk 0:02:50]}  Nxd5 {[%clk 0:02:57]} 5. e4 {[%clk 0:02:51]}  Nb6 {[%clk 0:02:58]} 6. Nc3 {[%clk 0:02:52]}  Bg7 {[%clk 0:02:58]} 7. Be3 {[%clk 0:02:52]}  O-O {[%clk 0:02:56]} 8. Qd2 {[%clk 0:02:53]}  e5 {[%clk 0:02:53]} 9. d5 {[%clk 0:02:52]}  c6 {[%clk 0:02:54]} 10. h4 {[%clk 0:02:49]}  cxd5 {[%clk 0:02:54]} 11. exd5 {[%clk 0:02:50]}  N8d7 {[%clk 0:02:38]} 12. h5 {[%clk 0:02:39]}  Re8 {[%clk 0:02:37]} 13. hxg6 {[%clk 0:02:31]}  hxg6 {[%clk 0:02:38]} 14. O-O-O {[%clk 0:02:31]}  Nf6 {[%clk 0:02:37]} 15. Bh6 {[%clk 0:02:23]}  Bh8 {[%clk 0:02:36]} 16. g4 {[%clk 0:02:06]}  e4 {[%clk 0:02:31]} 17. Bg5 {[%clk 0:01:54]}  Bg7 {[%clk 0:02:16]} 18. d6 {[%clk 0:01:39]}  Be6 {[%clk 0:02:08]} 19. Kb1 {[%clk 0:01:16]}  Rc8 {[%clk 0:02:03]} 20. Nxe4 {[%clk 0:01:11]}  Nxe4 {[%clk 0:02:03]} 21. fxe4 {[%clk 0:01:11]}  Qd7 {[%clk 0:02:00]} 22. Qf4 {[%clk 0:00:43]}  Bxa2+ {[%clk 0:01:40]} 23. Kxa2 {[%clk 0:00:22]}  Qa4+ {[%clk 0:01:40]} 24. Kb1 {[%clk 0:00:22]}  Qxd1+ {[%clk 0:01:40]} 25. Ka2 {[%clk 0:00:23]}  Qa4+ {[%clk 0:01:39]} 26. Kb1 {[%clk 0:00:24]}  Qc2+ {[%clk 0:01:40]} 27. Ka2 {[%clk 0:00:23]}  Rxe4 {[%clk 0:01:37]} 28. d7 {[%clk 0:00:08]}  Nxd7 {[%clk 0:01:30]} 29. Bd3 {[%clk 0:00:02]}  Qa4+ {[%clk 0:01:28]} 30. Kb1 {[%clk 0:00:01]}  Rxf4 {[%clk 0:01:27]} 31. Bxf4 {[%clk 0:00:02]}  Qxf4 {[%clk 0:01:25]} 32. Ne2 {[%clk 0:00:03]}  Qd2 {[%clk 0:01:24]} 33. Rd1 {[%clk 0:00:03]}  Qxd1+ {[%clk 0:01:24]} 34. Nc1 {[%clk 0:00:02]}  Qxc1+ {[%clk 0:01:24]} 35. Ka2 {[%clk 0:00:03]}  Qxb2# {[%clk 0:01:24]} 0-1


[Site "https://www.chess.com"]

[Event "Titled Tuesday Blitz June 13 Early 2023"]
[White "Kiseljova, Marya"]
[Black "Georg, Heinz"]
[WhiteFideId "4155009"]
[BlackFideId "4607295"]
[WhiteElo "1831"]
[BlackElo "2330"]
[Result "1-0"]
[Round "4"]
[TimeControl "180+2"]
[Date "2023.06.13"]
[WhiteClock "0:00:17"]
[BlackClock "0:00:00"]
[Board "213"]

1. d4 {[%clk 0:03:00]}  f5 {[%clk 0:02:59]} 2. c4 {[%clk 0:03:00]}  Nf6 {[%clk 0:02:58]} 3. Nc3 {[%clk 0:03:00]}  d6 {[%clk 0:02:58]} 4. Nf3 {[%clk 0:02:59]}  g6 {[%clk 0:02:58]} 5. g3 {[%clk 0:02:59]}  Bg7 {[%clk 0:02:58]} 6. Bg2 {[%clk 0:02:59]}  O-O {[%clk 0:02:58]} 7. O-O {[%clk 0:02:59]}  Qe8 {[%clk 0:02:56]} 8. Qc2 {[%clk 0:02:58]}  e5 {[%clk 0:02:52]} 9. dxe5 {[%clk 0:02:48]}  dxe5 {[%clk 0:02:52]} 10. e4 {[%clk 0:02:48]}  f4 {[%clk 0:02:52]} 11. Nd5 {[%clk 0:02:40]}  Na6 {[%clk 0:02:47]} 12. Re1 {[%clk 0:02:30]}  c6 {[%clk 0:02:47]} 13. Nc3 {[%clk 0:02:24]}  Nh5 {[%clk 0:02:44]} 14. Bd2 {[%clk 0:02:11]}  Bg4 {[%clk 0:02:42]} 15. gxf4 {[%clk 0:01:43]}  Nxf4 {[%clk 0:02:38]} 16. Bxf4 {[%clk 0:01:40]}  Rxf4 {[%clk 0:02:37]} 17. Nd2 {[%clk 0:01:40]}  Qe6 {[%clk 0:02:27]} 18. f3 {[%clk 0:01:40]}  Bh3 {[%clk 0:02:27]} 19. Ne2 {[%clk 0:01:39]}  Rf7 {[%clk 0:02:20]} 20. b3 {[%clk 0:01:30]}  Bh6 {[%clk 0:02:17]} 21. Nf1 {[%clk 0:01:28]}  Bxg2 {[%clk 0:02:12]} 22. Kxg2 {[%clk 0:01:28]}  Raf8 {[%clk 0:02:11]} 23. Ng1 {[%clk 0:01:23]}  Qf6 {[%clk 0:01:39]} 24. Qf2 {[%clk 0:01:21]}  b6 {[%clk 0:01:36]} 25. Ne3 {[%clk 0:01:13]}  Bf4 {[%clk 0:01:29]} 26. Ng4 {[%clk 0:01:10]}  Qe7 {[%clk 0:01:19]} 27. Rad1 {[%clk 0:01:07]}  h5 {[%clk 0:01:18]} 28. Ne3 {[%clk 0:01:04]}  Qg5+ {[%clk 0:01:16]} 29. Kh1 {[%clk 0:01:04]}  Nc5 {[%clk 0:01:13]} 30. Nf1 {[%clk 0:01:01]}  Ne6 {[%clk 0:00:56]} 31. Qg2 {[%clk 0:01:00]}  Qh6 {[%clk 0:00:47]} 32. Rd6 {[%clk 0:00:59]}  Rf6 {[%clk 0:00:40]} 33. Red1 {[%clk 0:00:54]}  Nd4 {[%clk 0:00:37]} 34. Rxf6 {[%clk 0:00:38]}  Rxf6 {[%clk 0:00:38]} 35. Qh3 {[%clk 0:00:35]}  Qg7 {[%clk 0:00:31]} 36. Ng3 {[%clk 0:00:31]}  Qe7 {[%clk 0:00:28]} 37. N3e2 {[%clk 0:00:30]}  c5 {[%clk 0:00:27]} 38. Nxf4 {[%clk 0:00:22]}  Rxf4 {[%clk 0:00:25]} 39. Qc8+ {[%clk 0:00:22]}  Kg7 {[%clk 0:00:21]} 40. Kg2 {[%clk 0:00:20]}  Qg5+ {[%clk 0:00:20]} 41. Kf2 {[%clk 0:00:20]}  Qh4+ {[%clk 0:00:20]} 42. Ke3 {[%clk 0:00:19]}  Qxh2 {[%clk 0:00:17]} 43. Qc7+ {[%clk 0:00:19]}  Kh6 {[%clk 0:00:17]} 44. Qxe5 {[%clk 0:00:19]}  Nc2+ {[%clk 0:00:16]} 45. Kd3 {[%clk 0:00:17]}  Nb4+ {[%clk 0:00:15]} 46. Ke3 {[%clk 0:00:16]}  Qg3 {[%clk 0:00:05]} 47. Qxf4+ {[%clk 0:00:16]}  Qxf4+ {[%clk 0:00:05]} 48. Kxf4 {[%clk 0:00:17]}  g5+ {[%clk 0:00:04]} 49. Kf5 {[%clk 0:00:17]}  h4 {[%clk 0:00:03]} 50. Nh3 {[%clk 0:00:17]}  Kh5 {[%clk 0:00:00]} 51. Nxg5 {[%clk 0:00:17]} 1-0


[Site "https://www.chess.com"]

[Event "Titled Tuesday Blitz June 13 Early 2023"]
[White "Gertler, David"]
[Black "Winkels, Marcel"]
[WhiteFideId "2017377"]
[BlackFideId "1003887"]
[WhiteElo "2326"]
[BlackElo "1900"]
[Result "1-0"]
[Round "4"]
[TimeControl "180+2"]
[Date "2023.06.13"]
[WhiteClock "0:01:14"]
[BlackClock "0:00:39"]
[Board "214"]

1. e4 {[%clk 0:03:00]}  Nf6 {[%clk 0:03:00]} 2. Nc3 {[%clk 0:03:00]}  d5 {[%clk 0:02:58]} 3. e5 {[%clk 0:03:00]}  d4 {[%clk 0:02:59]} 4. exf6 {[%clk 0:03:01]}  dxc3 {[%clk 0:02:59]} 5. fxg7 {[%clk 0:03:01]}  cxd2+ {[%clk 0:02:59]} 6. Bxd2 {[%clk 0:03:02]}  Bxg7 {[%clk 0:03:00]} 7. Qf3 {[%clk 0:03:02]}  Nc6 {[%clk 0:02:52]} 8. Bc4 {[%clk 0:02:58]}  Ne5 {[%clk 0:02:42]} 9. Qg3 {[%clk 0:02:59]}  O-O {[%clk 0:02:39]} 10. O-O-O {[%clk 0:02:47]}  Ng6 {[%clk 0:02:15]} 11. Bc3 {[%clk 0:02:40]}  Bd7 {[%clk 0:02:12]} 12. Bxg7 {[%clk 0:02:27]}  Kxg7 {[%clk 0:02:12]} 13. h4 {[%clk 0:02:16]}  h5 {[%clk 0:01:51]} 14. Nf3 {[%clk 0:01:23]}  e6 {[%clk 0:01:43]} 15. Ne5 {[%clk 0:01:19]}  Qe7 {[%clk 0:01:39]} 16. Rxd7 {[%clk 0:01:17]}  Qc5 {[%clk 0:00:39]} 17. Qxg6+ {[%clk 0:01:14]} 1-0


[Site "https://www.chess.com"]

[Event "Titled Tuesday Blitz June 13 Early 2023"]
[White "MunichMouse"]
[Black "Hartikainen, Jarmo"]
[BlackFideId "503134"]
[WhiteElo "2313"]
[BlackElo "2125"]
[Result "1/2-1/2"]
[Round "4"]
[TimeControl "180+2"]
[Date "2023.06.13"]
[WhiteClock "0:00:10"]
[BlackClock "0:00:40"]
[Board "215"]

1. d4 {[%clk 0:03:00]}  Nf6 {[%clk 0:02:59]} 2. c4 {[%clk 0:03:01]}  g6 {[%clk 0:02:59]} 3. g3 {[%clk 0:03:01]}  Bg7 {[%clk 0:02:58]} 4. Bg2 {[%clk 0:03:01]}  O-O {[%clk 0:02:58]} 5. e4 {[%clk 0:03:01]}  d6 {[%clk 0:02:57]} 6. Ne2 {[%clk 0:03:02]}  Nc6 {[%clk 0:02:57]} 7. Nbc3 {[%clk 0:02:59]}  a6 {[%clk 0:02:56]} 8. O-O {[%clk 0:02:58]}  Rb8 {[%clk 0:02:52]} 9. a4 {[%clk 0:02:57]}  e5 {[%clk 0:02:48]} 10. d5 {[%clk 0:02:56]}  Na5 {[%clk 0:02:47]} 11. b3 {[%clk 0:02:55]}  c6 {[%clk 0:02:36]} 12. h3 {[%clk 0:02:55]}  cxd5 {[%clk 0:02:33]} 13. cxd5 {[%clk 0:02:50]}  b5 {[%clk 0:02:20]} 14. axb5 {[%clk 0:02:48]}  axb5 {[%clk 0:02:21]} 15. Be3 {[%clk 0:02:43]}  Bd7 {[%clk 0:02:12]} 16. Na2 {[%clk 0:01:18]}  b4 {[%clk 0:01:51]} 17. Bd2 {[%clk 0:01:17]}  Bb5 {[%clk 0:01:30]} 18. Re1 {[%clk 0:01:17]}  Bd3 {[%clk 0:01:22]} 19. Nxb4 {[%clk 0:01:14]}  Bxe4 {[%clk 0:01:17]} 20. Rxa5 {[%clk 0:01:05]}  Qxa5 {[%clk 0:01:13]} 21. Nc6 {[%clk 0:01:05]}  Qb6 {[%clk 0:01:06]} 22. Nxb8 {[%clk 0:00:49]}  Bxg2 {[%clk 0:01:03]} 23. Kxg2 {[%clk 0:00:45]}  Rxb8 {[%clk 0:01:02]} 24. Nc3 {[%clk 0:00:15]}  Qxb3 {[%clk 0:00:57]} 25. Qxb3 {[%clk 0:00:16]}  Rxb3 {[%clk 0:00:57]} 26. Ra1 {[%clk 0:00:16]}  h6 {[%clk 0:00:42]} 27. Ra8+ {[%clk 0:00:13]}  Kh7 {[%clk 0:00:42]} 28. Ra7 {[%clk 0:00:14]}  Kg8 {[%clk 0:00:41]} 29. Ra8+ {[%clk 0:00:13]}  Kh7 {[%clk 0:00:40]} 30. Ra7 {[%clk 0:00:10]}  Kg8 {[%clk 0:00:40]} 31. Ra8+ {[%clk 0:00:10]} 1/2-1/2


[Site "https://www.chess.com"]

[Event "Titled Tuesday Blitz June 13 Early 2023"]
[White "Bolanos, Fernando"]
[Black "Philippe, Guillaume"]
[WhiteFideId "3304094"]
[BlackFideId "36048763"]
[WhiteElo "2097"]
[BlackElo "2387"]
[Result "0-1"]
[Round "4"]
[TimeControl "180+2"]
[Date "2023.06.13"]
[WhiteClock "0:00:02"]
[BlackClock "0:00:08"]
[Board "219"]

1. e4 {[%clk 0:02:58]}  c5 {[%clk 0:02:59]} 2. Nf3 {[%clk 0:02:57]}  Nc6 {[%clk 0:02:59]} 3. d4 {[%clk 0:02:56]}  cxd4 {[%clk 0:02:59]} 4. Nxd4 {[%clk 0:02:56]}  Nf6 {[%clk 0:02:59]} 5. Nc3 {[%clk 0:02:56]}  e5 {[%clk 0:03:00]} 6. Ndb5 {[%clk 0:02:57]}  d6 {[%clk 0:03:00]} 7. Nd5 {[%clk 0:02:57]}  Nxd5 {[%clk 0:02:55]} 8. exd5 {[%clk 0:02:58]}  Ne7 {[%clk 0:02:55]} 9. c4 {[%clk 0:02:57]}  Ng6 {[%clk 0:02:46]} 10. Be3 {[%clk 0:02:54]}  Be7 {[%clk 0:02:33]} 11. g3 {[%clk 0:02:01]}  f5 {[%clk 0:02:27]} 12. h4 {[%clk 0:01:58]}  h5 {[%clk 0:01:54]} 13. Be2 {[%clk 0:01:27]}  Kf7 {[%clk 0:01:20]} 14. Bxh5 {[%clk 0:01:18]}  a6 {[%clk 0:01:14]} 15. Nc3 {[%clk 0:01:18]}  Bf6 {[%clk 0:01:12]} 16. Qf3 {[%clk 0:01:08]}  Bd7 {[%clk 0:01:09]} 17. O-O-O {[%clk 0:01:07]}  b5 {[%clk 0:01:09]} 18. c5 {[%clk 0:01:06]}  dxc5 {[%clk 0:01:06]} 19. Bxc5 {[%clk 0:01:05]}  Rc8 {[%clk 0:01:05]} 20. b4 {[%clk 0:00:55]}  a5 {[%clk 0:00:58]} 21. a3 {[%clk 0:00:54]}  axb4 {[%clk 0:00:58]} 22. axb4 {[%clk 0:00:55]}  e4 {[%clk 0:00:49]} 23. Bxg6+ {[%clk 0:00:55]}  Kxg6 {[%clk 0:00:50]} 24. Qe3 {[%clk 0:00:55]}  Ra8 {[%clk 0:00:43]} 25. h5+ {[%clk 0:00:52]}  Kf7 {[%clk 0:00:43]} 26. Kb2 {[%clk 0:00:46]}  Qc7 {[%clk 0:00:29]} 27. h6 {[%clk 0:00:43]}  g6 {[%clk 0:00:28]} 28. Ra1 {[%clk 0:00:40]}  Qe5 {[%clk 0:00:28]} 29. Rhd1 {[%clk 0:00:23]}  g5 {[%clk 0:00:28]} 30. Bd4 {[%clk 0:00:22]}  Qd6 {[%clk 0:00:24]} 31. Bxf6 {[%clk 0:00:18]}  Qxf6 {[%clk 0:00:25]} 32. Ra7 {[%clk 0:00:16]}  Rxa7 {[%clk 0:00:19]} 33. Qxa7 {[%clk 0:00:17]}  Rd8 {[%clk 0:00:11]} 34. h7 {[%clk 0:00:17]}  Kg7 {[%clk 0:00:12]} 35. Qc7 {[%clk 0:00:11]}  Kh8 {[%clk 0:00:11]} 36. Rh1 {[%clk 0:00:11]}  Rc8 {[%clk 0:00:10]} 37. Qxc8+ {[%clk 0:00:03]}  Bxc8 {[%clk 0:00:11]} 38. Kb3 {[%clk 0:00:03]}  Bb7 {[%clk 0:00:08]} 39. Rd1 {[%clk 0:00:03]}  Qd6 {[%clk 0:00:08]} 40. Nxb5 {[%clk 0:00:03]}  Bxd5+ {[%clk 0:00:08]} 41. Ka4 {[%clk 0:00:02]}  Qa6# {[%clk 0:00:08]} 0-1


[Site "https://www.chess.com"]

[Event "Titled Tuesday Blitz June 13 Early 2023"]
[White "Maluco_do_Natal_00"]
[Black "Gonzalez Vega, Alejandro"]
[BlackFideId "3510042"]
[WhiteElo "2077"]
[BlackElo "2288"]
[Result "0-1"]
[Round "4"]
[TimeControl "180+2"]
[Date "2023.06.13"]
[WhiteClock "0:00:00"]
[BlackClock "0:00:55"]
[Board "220"]

1. e4 {[%clk 0:03:00]}  c5 {[%clk 0:02:56]} 2. Nf3 {[%clk 0:03:00]}  a6 {[%clk 0:02:55]} 3. d4 {[%clk 0:03:01]}  cxd4 {[%clk 0:02:56]} 4. Nxd4 {[%clk 0:03:01]}  Nf6 {[%clk 0:02:57]} 5. Nc3 {[%clk 0:03:02]}  e5 {[%clk 0:02:57]} 6. Nb3 {[%clk 0:02:52]}  d6 {[%clk 0:02:56]} 7. Be3 {[%clk 0:02:51]}  Be6 {[%clk 0:02:57]} 8. Qd2 {[%clk 0:02:51]}  Be7 {[%clk 0:02:57]} 9. f3 {[%clk 0:02:51]}  Nbd7 {[%clk 0:02:58]} 10. O-O-O {[%clk 0:02:51]}  Qc7 {[%clk 0:02:58]} 11. g4 {[%clk 0:02:51]}  Rc8 {[%clk 0:02:56]} 12. g5 {[%clk 0:02:40]}  Nh5 {[%clk 0:02:51]} 13. Kb1 {[%clk 0:02:38]}  O-O {[%clk 0:02:44]} 14. Nd5 {[%clk 0:02:20]}  Bxd5 {[%clk 0:02:44]} 15. exd5 {[%clk 0:02:21]}  Nf4 {[%clk 0:02:41]} 16. c4 {[%clk 0:02:00]}  Bxg5 {[%clk 0:02:38]} 17. Rg1 {[%clk 0:01:47]}  Bh6 {[%clk 0:02:32]} 18. Nd4 {[%clk 0:01:38]}  exd4 {[%clk 0:01:40]} 19. Bxf4 {[%clk 0:01:35]}  Bxf4 {[%clk 0:01:39]} 20. Qxf4 {[%clk 0:01:30]}  Ne5 {[%clk 0:01:39]} 21. Qf6 {[%clk 0:01:06]}  g6 {[%clk 0:01:30]} 22. h4 {[%clk 0:00:40]}  Qd8 {[%clk 0:01:30]} 23. Qxd8 {[%clk 0:00:30]}  Rfxd8 {[%clk 0:01:28]} 24. h5 {[%clk 0:00:12]}  Nxf3 {[%clk 0:01:24]} 25. Rg3 {[%clk 0:00:09]}  Ne5 {[%clk 0:01:22]} 26. Rxd4 {[%clk 0:00:08]}  Kg7 {[%clk 0:01:16]} 27. hxg6 {[%clk 0:00:08]}  hxg6 {[%clk 0:01:16]} 28. b3 {[%clk 0:00:05]}  Rh8 {[%clk 0:01:10]} 29. Bh3 {[%clk 0:00:05]}  Rce8 {[%clk 0:01:03]} 30. Kb2 {[%clk 0:00:05]}  Rh5 {[%clk 0:01:01]} 31. Ka3 {[%clk 0:00:04]}  b6 {[%clk 0:00:59]} 32. Bg4 {[%clk 0:00:04]}  Rg5 {[%clk 0:00:57]} 33. Rg1 {[%clk 0:00:00]}  f5 {[%clk 0:00:55]} 0-1


[Site "https://www.chess.com"]

[Event "Titled Tuesday Blitz June 13 Early 2023"]
[White "Antonio, Jorge Carlos"]
[Black "Slayyy_200"]
[WhiteFideId "113190"]
[WhiteElo "2247"]
[BlackElo "2051"]
[Result "1-0"]
[Round "4"]
[TimeControl "180+2"]
[Date "2023.06.13"]
[WhiteClock "0:00:43"]
[BlackClock "0:00:30"]
[Board "222"]

1. d4 {[%clk 0:03:00]}  Nf6 {[%clk 0:02:59]} 2. Nf3 {[%clk 0:02:58]}  b6 {[%clk 0:02:59]} 3. c4 {[%clk 0:02:57]}  e6 {[%clk 0:02:59]} 4. Nc3 {[%clk 0:02:56]}  Bb7 {[%clk 0:02:58]} 5. g3 {[%clk 0:02:56]}  Be7 {[%clk 0:02:58]} 6. Bg2 {[%clk 0:02:55]}  O-O {[%clk 0:02:58]} 7. O-O {[%clk 0:02:46]}  Ne4 {[%clk 0:02:57]} 8. Qc2 {[%clk 0:02:41]}  Nxc3 {[%clk 0:02:56]} 9. Qxc3 {[%clk 0:02:39]}  f5 {[%clk 0:02:48]} 10. Bf4 {[%clk 0:02:33]}  d6 {[%clk 0:02:44]} 11. b4 {[%clk 0:02:25]}  Nd7 {[%clk 0:02:43]} 12. Qe3 {[%clk 0:02:21]}  Be4 {[%clk 0:02:22]} 13. Ng5 {[%clk 0:02:14]}  Bxg5 {[%clk 0:02:17]} 14. Bxg5 {[%clk 0:02:10]}  Nf6 {[%clk 0:01:57]} 15. Bxf6 {[%clk 0:02:05]}  Qxf6 {[%clk 0:01:58]} 16. Bxe4 {[%clk 0:02:00]}  fxe4 {[%clk 0:01:55]} 17. Qxe4 {[%clk 0:02:01]}  Rae8 {[%clk 0:01:54]} 18. a3 {[%clk 0:01:56]}  e5 {[%clk 0:01:53]} 19. d5 {[%clk 0:01:53]}  Qg5 {[%clk 0:01:51]} 20. h4 {[%clk 0:01:49]}  Qh6 {[%clk 0:01:47]} 21. Rac1 {[%clk 0:01:43]}  Rf6 {[%clk 0:01:46]} 22. c5 {[%clk 0:01:39]}  Ref8 {[%clk 0:01:39]} 23. cxd6 {[%clk 0:01:36]}  cxd6 {[%clk 0:01:39]} 24. f3 {[%clk 0:01:29]}  g5 {[%clk 0:01:29]} 25. hxg5 {[%clk 0:01:27]}  Qxg5 {[%clk 0:01:29]} 26. Kf2 {[%clk 0:01:23]}  Qd2 {[%clk 0:01:23]} 27. Rc7 {[%clk 0:01:17]}  Rxf3+ {[%clk 0:01:13]} 28. Kg2 {[%clk 0:01:02]}  Rxg3+ {[%clk 0:01:00]} 29. Kxg3 {[%clk 0:00:57]}  Qg5+ {[%clk 0:00:58]} 30. Kh2 {[%clk 0:00:48]}  Qh5+ {[%clk 0:00:30]} 31. Kg1 {[%clk 0:00:43]} 1-0


[Site "https://www.chess.com"]